Cogmind - Beta 16 @@@ ROGUE MODE // 2025.12.06 @ 01:08:57 Player: arkn Result: Destroyed by G-47 Trooper with Particle Gun Performance ------------- Evolutions (1) 500 Regions Visited (6) 1200 Robots Destroyed (69) 345 Value Destroyed (1557) 1557 Prototype IDs (27) 540 Alien Tech Used (0) 0 Bonus (114) 114 TOTAL SCORE: 4256 Bonus ------- Follower Combat Kills 114 Cogmind --------- Core Integrity 0/400 Matter 236/300 Energy 64/100 System Corruption 0% Temperature Cool (9) Movement Walking (120) Location -8/Mines Parts ------- > --- POWER (1) -------- (None) > --- PROPULSION (3) --- Aluminum Leg Improved Aluminum Leg Carbon-fiber Leg > --- UTILITY (3) ------ Advanced Heat Sink Large Storage Unit Targeting Computer > --- WEAPON (2) ------- Improved Medium Laser Gauss Rifle > --- INVENTORY (15) --- Improved Heat Sink Medium Storage Unit Structural Scanner Seismic Detector Light Armor Plating Medium Armor Plating YOLO Cannon Plasma Cutter Katana Makeshift Axe Peak State ------------ > --- POWER ------------ Light Angular Momentum Engine > --- PROPULSION ------- Improved Aluminum Leg Improved Aluminum Leg Makeshift Leg > --- UTILITY ---------- Advanced Heat Sink Large Storage Unit Targeting Computer > --- WEAPON ----------- YOLO Cannon > --- INVENTORY -------- Aluminum Leg Carbon-fiber Leg Improved Heat Sink Medium Storage Unit Structural Scanner Seismic Detector Light Armor Plating Medium Armor Plating Improved Medium Laser Shotgun Gauss Rifle Plasma Cutter Katana Makeshift Axe [Rating: 43] Favorites ----------- Power Heavy Ion Engine Engine Heavy Ion Engine Propulsion Light Treads Treads Light Treads Leg Improved Aluminum Leg Wheel Compact Wheel Utility Targeting Computer Device Cooling System Storage Medium Storage Unit Processor Targeting Computer Protection Light Armor Plating Weapon EM Pulse Gun Energy Gun EM Pulse Gun Energy Cannon YOLO Cannon Ballistic Gun Heavy Assault Rifle Ballistic Cannon Improved Light Cannon Special Weapon Mining Laser Impact Weapon Hammer Build | -11 -10 -10 -9 -9 -9 -8 ------- Run | Yrd Mat Min Mat Min Exi Min Slots Evolved 2 | . . . 2 . . . Power . | . . . . . . . Propulsion 1 | . . . 1 . . . Utility 1 | . . . 1 . . . Weapon . | . . . . . . . Parts Attached 47 | 6 4 10 16 1 2 8 Power 4 | 1 . . 2 . . 1 Engine 4 | 1 . . 2 . . 1 Core . | . . . . . . . Reactor . | . . . . . . . Propulsion 17 | 2 . 5 5 . 1 4 Treads 8 | 2 . 2 4 . . . Leg 8 | . . 2 1 . 1 4 Wheel 1 | . . 1 . . . . Hover . | . . . . . . . Flight . | . . . . . . . Utility 10 | 1 4 . 3 1 . 1 Device 4 | 1 1 . 1 . . 1 Storage 4 | . 2 . 1 1 . . Processor 1 | . 1 . . . . . Hackware . | . . . . . . . Protection 1 | . . . 1 . . . Artifact . | . . . . . . . Weapon 16 | 2 . 5 6 . 1 2 Energy Gun 4 | 2 . 1 1 . . . Energy Cannon 2 | . . . 1 . 1 . Ballistic Gun 7 | . . 2 3 . . 2 Ballistic Cannon 1 | . . . 1 . . . Launcher . | . . . . . . . Special Weapon 1 | . . 1 . . . . Impact Weapon 1 | . . 1 . . . . Slashing Weapon . | . . . . . . . Piercing Weapon . | . . . . . . . Special Melee Weapon . | . . . . . . . Unidentified Prototypes 4 | . . . 4 . . . Corrupted Parts 2 | . . 2 . . . . System Corruption 4 | . . 4 . . . . Parts Lost 17 | . . 9 1 1 . 6 Power 2 | . . 1 . . . 1 Propulsion 8 | . . 3 1 1 . 3 Utility 1 | . . . . . . 1 Weapon 6 | . . 5 . . . 1 Highest Loss Streak 6 | . . 6 1 1 . 3 To Critical Strikes . | . . . . . . . Average Backups 10 | 4 7 8 9 10 14 13 Power . | . . . . . . . Propulsion 2 | 1 1 1 1 2 4 2 Utility 4 | . 4 6 4 3 6 5 Weapon 3 | 1 2 . 3 4 3 4 Tool/Special . | . . . . . . . Unused Backups 13 | . 1 . 3 1 1 7 Power . | . . . . . . . Propulsion 2 | . 1 . . . . 1 Utility 6 | . . . 3 . . 3 Weapon 4 | . . . . 1 1 2 Tool/Special 1 | . . . . . . 1 Average Slot Usage (%) 89 | . 99 81 96 88 83 82 Engine 9 | . 13 5 7 11 11 2 Treads 22 | . 27 15 29 22 22 2 Leg 5 | . . 8 3 . 4 30 Device 6 | . 5 . 1 11 11 10 Storage 10 | . 8 14 11 11 11 11 Processor 11 | . 13 14 11 11 11 11 Protection 2 | . . . 9 . . . Energy Gun 7 | . 28 11 . . . 1 Energy Cannon 5 | . . . 2 11 11 6 Ballistic Gun 6 | . . 7 10 11 2 6 Ballistic Cannon 1 | . . . 8 . . . Peak Build Rating 43 | 6 8 8 18 18 36 43 Average Rating 17 | 4 7 6 14 16 30 32 On Entrance 13 | . 6 8 8 18 17 36 Avg Prop Armor Cover (%) 11 | 25 . 20 . . 6 6 Naked Turns . | . . . . . . . Heaviest Build 48 | 10 19 19 28 37 48 48 Greatest Support 69 | 40 40 40 69 66 43 46 Greatest Overweight (x) 4 | 1 . 4 . . 1 2 Average Overweight (x) . | . . . . . . . Largest Inventory Capacity 15 | 5 10 10 10 15 15 15 Average Capacity 10 | 5 7 10 10 10 15 15 Most Carried 15 | 5 10 10 10 15 15 15 Average Carried 10 | 4 7 8 9 10 14 13 Final Capacity 15 | 5 10 10 10 15 15 15 Final Carried 15 | 5 10 10 10 15 15 11 Class Distribution -------------------- 92% | Mutant 5% | Scavenger-Mutant Dominant Class ---------------- Mutant | -10/Materials Mutant | -10/Mines Mutant | -9/Materials Mutant | -9/Mines Mutant | -9/Exiles Mutant | -8/Mines Resources | -11 -10 -10 -9 -9 -9 -8 ----------- Run | Yrd Mat Min Mat Min Exi Min Matter Collected 1171 | 260 60 119 447 67 . 218 Remotely . | . . . . . . . Salvage Created 2129 | 294 296 363 490 403 . 283 Parts 134 | 24 15 20 27 34 . 14 Haulers Intercepted 3 | . 2 . 1 . . . Recyclers Shooed 4 | . . . 2 2 . . Parts Field Recycled . | . . . . . . . Retrieved Matter . | . . . . . . . Parts Self-Destructed . | . . . . . . . Prevented . | . . . . . . . Parts Restored . | . . . . . . . Kills | -11 -10 -10 -9 -9 -9 -8 ------- Run | Yrd Mat Min Mat Min Exi Min Combat Hostiles Destroyed 46 | . 3 9 13 12 . 9 Guns 28 | . 3 9 6 6 . 4 Cannons 14 | . . . 7 6 . 1 AOE 4 | . . . . . . 4 Classes Destroyed 10 | 3 3 2 1 1 . . Worker 6 | 2 . 1 1 1 . 1 Tunneler 11 | 9 . . . . . 2 Hauler 3 | . 2 . 1 . . . Recycler 1 | 1 . . . . . . Watcher 2 | . 1 . 1 . . . Swarmer 16 | . . 3 3 6 . 4 Grunt 21 | . 3 4 6 4 . 4 Brawler 1 | . . . . 1 . . Duelist 3 | . . . 1 1 . 1 Sentry 5 | . . 2 3 . . . Best Kill Streak 6 | 4 2 3 6 3 . 4 Combat Bots Only 6 | . 2 3 6 3 . 3 Max Kills in Single Turn 4 | 1 1 2 1 2 . 4 Gunslinging . | . . . . . . . Exploded 2 | . . . . . . 2 Melee . | . . . . . . . Uniques/NPCs Destroyed . | . . . . . . . Combat | -11 -10 -10 -9 -9 -9 -8 -------- Run | Yrd Mat Min Mat Min Exi Min Hostile Shots Fired 275 | . 24 70 91 35 . 55 Missed 66 | . 9 12 22 11 . 12 Hits 209 | . 15 58 69 24 . 43 Melee 22 | . . . 14 . . 8 Projectile 187 | . 15 58 55 24 . 35 Critical Strikes 7 | . . 5 1 . . 1 Damage Taken 3181 | . 172 833 1073 207 . 896 Core 565 | . 23 130 255 13 . 144 Absorbed by Shields . | . . . . . . . Core Remaining (%) 69 | 100 . 38 . . . . Volleys Fired 175 | 23 20 33 48 20 . 31 Largest 2 | 2 2 2 2 2 . 2 Hottest 100 | 80 80 100 91 91 . 100 Shots Fired 324 | 46 40 47 96 40 . 55 Gun 251 | 46 40 46 48 20 . 51 Cannon 72 | . . . 48 20 . 4 Launcher . | . . . . . . . Special 1 | . . 1 . . . . Kinetic 174 | . . 21 85 20 . 48 Thermal 39 | . . 1 11 20 . 7 Explosive . | . . . . . . . Electromagnetic 111 | 46 40 25 . . . . Robot Hit Streak 13 | 9 11 13 11 6 . 10 Robot Miss Streak 4 | 3 2 1 4 3 . 2 Penetration Max 1 | . . . . . . 1 Secondary Targets 1 | . . 1 . . . . Max Gunslinging Chain 1 | . . 1 . . . . Shots Hit Robots 211 | 27 27 37 59 21 . 40 Core Hits 99 | 14 9 20 22 16 . 18 Critical Kills . | . . . . . . . Critical Parts Destroyed 1 | . . 1 . . . . Critical Strikes 3 | . . 3 . . . . Destroy 1 | . . 1 . . . . Corrupt 2 | . . 2 . . . . Melee Attacks 2 | . . 2 . . . . Impact 2 | . . 2 . . . . Slashing . | . . . . . . . Piercing . | . . . . . . . Sneak Attacks 1 | . . 1 . . . . Combat Hostiles . | . . . . . . . Follow-up Attacks . | . . . . . . . Damage Inflicted 4359 | 502 391 579 1113 440 . 1334 Guns 2643 | 391 391 393 501 173 . 794 Cannons 992 | . . . 612 267 . 113 Explosions 630 | 111 . 92 . . . 427 Melee 70 | . . 70 . . . . Ramming . | . . . . . . . Kinetic 2063 | . . 161 969 173 . 760 Thermal 1212 | 111 . 116 144 267 . 574 Explosive . | . . . . . . . Electromagnetic 1014 | 391 391 232 . . . . Impact 70 | . . 70 . . . . Slashing . | . . . . . . . Piercing . | . . . . . . . Highest Corruption 4 | . . 4 . . . . Average Corruption 3 | . . 3 . . . . Corruption Purged . | . . . . . . . Corruption Blocked . | . . . . . . . Effects 6 | . . 6 . . . . Message Errors 1 | . . 1 . . . . Energy Discharges 1 | . . 1 . . . . Parts Fused 1 | . . 1 . . . . Data Loss (minor) 1 | . . 1 . . . . Data Loss (major) 1 | . . 1 . . . . Misfires 1 | . . 1 . . . . Overload Shots . | . . . . . . . Overflow Damage 84 | 10 . 12 17 . . 45 Projectiles 17 | . . . 17 . . . Explosions 55 | 10 . . . . . 45 Melee 12 | . . 12 . . . . Knockbacks 9 | . . 1 8 . . . Impact 1 | . . 1 . . . . Kinetic 6 | . . . 6 . . . Secondary 2 | . . . 2 . . . Self-Inflicted Damage 127 | . . . . . . 127 Shots 2 | . . . . . . 2 Rammed . | . . . . . . . Targets Rammed . | . . . . . . . Kicked . | . . . . . . . Crushed . | . . . . . . . Highest Temperature 258 | 108 216 157 258 . . 41 Average Temperature 54 | 30 68 54 74 . . 26 Received Heat Transfer 1044 | . 96 384 276 27 . 261 Siege Activations . | . . . . . . . Martial Activations . | . . . . . . . Shielding Activations . | . . . . . . . Robots Disrupted . | . . . . . . . Combat Hostiles . | . . . . . . . Robots Corrupted 1 | . . 1 . . . . Combat Hostiles . | . . . . . . . Parts Fried 6 | 3 2 1 . . . . Impact Corruptions 2 | . . 1 1 . . . Robots Melted . | . . . . . . . Combat Hostiles . | . . . . . . . Parts Melted 1 | . . . . . . 1 Heat Transferred 1934 | 200 . 200 259 481 . 794 Parts Sabotaged . | . . . . . . . Parts Stolen . | . . . . . . . Parts Stripped . | . . . . . . . Power Chain Reactions 4 | 2 . 2 . . . . Alert | -11 -10 -10 -9 -9 -9 -8 ------- Run | Yrd Mat Min Mat Min Exi Min Maximum Alert Level 1 | . . . . . . 1 Low Security (%) 99 | 100 100 100 100 100 . 94 Level 1 . | . . . . . . 5 Level 2 . | . . . . . . . Level 3 . | . . . . . . . Level 4 . | . . . . . . . Level 5 . | . . . . . . . High Security . | . . . . . . . Max Security . | . . . . . . . Peak Influence 210 | 10 77 118 164 85 . 210 Initial 19 | . . . . 19 . . Average 53 | 2 14 41 69 40 . 158 Influence Increases 1722 | 60 165 253 399 290 . 555 Destroy 0b10 Robot/C 1080 | . 60 180 260 240 . 340 Destroy 0b10 Robot/NC 115 | 60 15 5 15 5 . 15 Destroy Leader 210 | . 26 30 54 40 . 60 Allied During Kill 41 | . . . . . . 41 Successful Hack 44 | . 34 . 5 5 . . Disable Machine 75 | . 15 15 30 . . 15 Destroy Structure 52 | . . 8 5 . . 39 Lose Combat Pursuer 105 | . 15 15 30 . . 45 Influence Decreases 1529 | 60 165 253 348 299 42 362 Entered New Map 74 | . . . . 32 42 . Time Decay 1218 | 60 165 175 338 258 . 222 Lost Part 157 | . . 78 10 9 . 60 Lost Ally 80 | . . . . . . 80 Squads Dispatched 3 | . 2 . . . . 1 Investigation 2 | . 2 . . . . . Extermination . | . . . . . . . Reinforcement 1 | . . . . . . 1 Assault . | . . . . . . . Garrison . | . . . . . . . Intercept . | . . . . . . . Searches Triggered . | . . . . . . . Construction Impeded 1 | . . . . . . 1 Haulers Reinforced . | . . . . . . . Active Scanning Responses . | . . . . . . . Cargo Convoy Interrupts . | . . . . . . . Stealth | -11 -10 -10 -9 -9 -9 -8 --------- Run | Yrd Mat Min Mat Min Exi Min Distress Signals . | . . . . . . . Communications Jammed . | . . . . . . . Distress Signals . | . . . . . . . Times Spotted 67 | . 9 7 18 13 . 20 Peak Tracking Total 7 | . 2 2 7 4 . 3 Tactical Retreats 6 | . 1 1 2 . . 2 Traps | -11 -10 -10 -9 -9 -9 -8 ------- Run | Yrd Mat Min Mat Min Exi Min Traps Triggered 3 | . 3 . . . . . Indirectly . | . . . . . . . Trap Hack Attempts . | . . . . . . . Triggered . | . . . . . . . Disarmed . | . . . . . . . Reprogrammed . | . . . . . . . Reused . | . . . . . . . Traps Extracted . | . . . . . . . Installed . | . . . . . . . Triggered . | . . . . . . . Machines | -11 -10 -10 -9 -9 -9 -8 ---------- Run | Yrd Mat Min Mat Min Exi Min Machines Disabled 6 | . 1 2 2 . . 1 Max in Single Turn 1 | . 1 1 1 . . 1 Machines Repaired . | . . . . . . . Machines Dismantled . | . . . . . . . Machines Sabotaged . | . . . . . . . Overloaded Fab Kills . | . . . . . . . Hacking | -11 -10 -10 -9 -9 -9 -8 --------- Run | Yrd Mat Min Mat Min Exi Min Machines Accessed 10 | . 5 . 2 1 2 . Terminals 8 | . 5 . 2 1 . . Fabricators . | . . . . . . . Repair Stations . | . . . . . . . Recycling Units . | . . . . . . . Scanalyzers . | . . . . . . . Garrison Access . | . . . . . . . Total Hacks 53 | . 20 . 6 3 24 . Successful 38 | . 8 . 5 1 24 . Failed 15 | . 12 . 1 2 . . Catastrophic 4 | . 2 . . 2 . . Database Lockouts . | . . . . . . . Manual 29 | . 20 . 5 3 1 . Terminals 29 | . 20 . 6 3 . . Fabricators . | . . . . . . . Repair Stations . | . . . . . . . Recycling Units . | . . . . . . . Scanalyzers . | . . . . . . . Garrison Access . | . . . . . . . Terminal Hacks 25 | . 1 . . . 24 . Record 23 | . . . . . 23 . Part Schematic 1 | . 1 . . . . . Proto ID Catalog 1 | . . . . . 1 . Fabricator Hacks . | . . . . . . . Repair Station Hacks . | . . . . . . . Recycling Unit Hacks . | . . . . . . . Scanalyzer . | . . . . . . . Garrison Access Hacks . | . . . . . . . Unauthorized Hacks 13 | . 7 . 5 1 . . Terminals 13 | . 7 . 5 1 . . Track 3 | . 1 . 2 . . . Botnet 7 | . 4 . 2 1 . . Operators 3 | . 2 . 1 . . . Fabricators . | . . . . . . . Repair Stations . | . . . . . . . Recycling Units . | . . . . . . . Scanalyzers . | . . . . . . . Garrison Access . | . . . . . . . Data Cores Recovered . | . . . . . . . Used . | . . . . . . . Hacking Detections 8 | . 5 . 2 1 . . Full Trace Events 1 | . . . . 1 . . Feedback Events . | . . . . . . . Feedback Blocked . | . . . . . . . Robot Schematics Acquired . | . . . . . . . Robots Built . | . . . . . . . Authchips . | . . . . . . . Time . | . . . . . . . Total Robot Build Rating . | . . . . . . . Part Schematics Acquired 1 | . 1 . . . . . Parts Built . | . . . . . . . Authchips . | . . . . . . . Time . | . . . . . . . Total Part Build Rating . | . . . . . . . Part Studies Acquired . | . . . . . . . Parts Repaired . | . . . . . . . Time . | . . . . . . . Parts Recycled . | . . . . . . . Recycled Matter . | . . . . . . . Retrieved Matter . | . . . . . . . Retrieved Components . | . . . . . . . Parts Scanalyzed . | . . . . . . . Part Schematics Acquired . | . . . . . . . Parts Damaged . | . . . . . . . Bothacking | -11 -10 -10 -9 -9 -9 -8 ------------ Run | Yrd Mat Min Mat Min Exi Min Used RIF Installer . | . . . . . . . Robots Hacked . | . . . . . . . Non-combat . | . . . . . . . Combat . | . . . . . . . Robot Hacks Applied . | . . . . . . . Relay Couplers Released . | . . . . . . . Fabnet Peak Effective % . | . . . . . . . Robots Rewired 4 | . . . . . 4 . Allies Hacked . | . . . . . . . Hacks Repelled . | . . . . . . . Allies | -11 -10 -10 -9 -9 -9 -8 -------- Run | Yrd Mat Min Mat Min Exi Min Total Allies 4 | . . . . . 4 . Largest Group 4 | . . . . . 4 4 Highest-Rated Group 58 | . . . . . 58 58 Highest-Rated Ally 21 | . . . . . 21 21 Total Orders . | . . . . . . . Ally Attacks 16 | . . . . . . 16 Total Damage 289 | . . . . . . 289 Kills 8 | . . . . . . 8 Allies Corrupted . | . . . . . . . Allies Melted . | . . . . . . . Intel | -11 -10 -10 -9 -9 -9 -8 ------- Run | Yrd Mat Min Mat Min Exi Min Active Infowar (turns) 396 | 34 362 . . . . . Structural 1 | . 1 . . . . . Seismic 395 | 34 361 . . . . . Robot Analysis Total . | . . . . . . . Derelict Logs Recovered 1 | . . . . 1 . . Drone Launches . | . . . . . . . Drone Recoveries . | . . . . . . . Exploration | -11 -10 -10 -9 -9 -9 -8 ------------- Run | Yrd Mat Min Mat Min Exi Min Turns Passed 4619 | 322 881 446 947 619 929 475 Spaces Moved 2235 | 173 505 237 338 345 398 239 Core 63 | 53 . 10 . . . . Treads 1792 | 120 505 113 296 345 398 15 Legs 372 | . . 106 42 . . 224 Wheels 8 | . . 8 . . . . Hover . | . . . . . . . Flight . | . . . . . . . Fastest Speed 50 | 50 160 100 120 160 160 120 Average Speed 164 | 138 160 144 155 160 219 139 Slowest Speed 320 | 160 160 250 160 160 240 320 Overloaded Moves . | . . . . . . . Propulsion Burnouts . | . . . . . . . Robots Hopped . | . . . . . . . Potential Cave-ins . | . . . . . . . Cave-ins Triggered . | . . . . . . . Exploration Rate (%) 50 | 7 85 37 35 63 89 34 Regions Visited 6 Branch Regions 4 Pre-discovered Areas 1 | . . . . . 1 . Known Exits Taken . | . . . . . . . Unknown Exits Taken 6 | 1 1 1 1 1 1 . Scrap Searched 4 | . . 1 . 2 . 1 Spaces Dug . | . . . . . . . Terrain Destroyed 82 | 5 . 8 1 . . 68 Melee . | . . . . . . . Projectile 4 | . . . 1 . . 3 AOE 78 | 5 . 8 . . . 65 Terrain Rammed . | . . . . . . . Walls Destroyed . | . . . . . . . Machines Disabled . | . . . . . . . Actions | -11 -10 -10 -9 -9 -9 -8 --------- Run | Yrd Mat Min Mat Min Exi Min Total 2853 | 207 536 293 667 373 456 321 Wait 282 | 1 . 3 241 . 3 34 Move 2229 | 172 504 236 337 344 397 239 Hop . | . . . . . . . Pick Up 37 | 5 5 7 10 6 1 3 Fast Attach 22 | 6 3 2 8 . 2 1 Attach 16 | . . 7 3 . . 6 Detach 2 | . . 1 . . . 1 Swap 12 | . 3 1 5 1 . 2 Drop 26 | . 1 1 15 2 3 4 Fire 175 | 23 20 33 48 20 . 31 Melee 2 | . . 2 . . . . Ram . | . . . . . . . Kick . | . . . . . . . Crush . | . . . . . . . Escape Stasis . | . . . . . . . Rewire 50 | . . . . . 50 . Trap . | . . . . . . . Miscellaneous . | . . . . . . . Route ------- -11/Scrapyard -10/Materials (discovered 4 exits: *Mat x3 / [*Min]) -10/Mines -9/Materials -9/Mines (discovered 2 exits: [*Mat] / *Exi) -9/Exiles -8/Mines History --------- Turn | Location | Event 3 | -11/Scrapyard | Discovered new exit (range 16) 323 | -11/Scrapyard | Entered Materials 324 | -10/Materials | Build established: Mutant 591 | -10/Materials | Discovered new exit (range 4) 715 | -10/Materials | Discovered new exit (range 15) 1045 | -10/Materials | Discovered new exit (range 6) 1147 | -10/Materials | Discovered new exit (range 7) 1204 | -10/Materials | Entered Mines 1420 | -10/Mines | Lost 6 parts (1p2n3w) 1430 | -10/Mines | Core integrity fell below 50% 1588 | -10/Mines | Discovered new exit (range 7) 1650 | -10/Mines | Entered Materials 1650 | -9/Materials | Evolved 2 slots: Propulsion x1, Utility x1 2491 | -9/Materials | Core integrity fell below 50% 2562 | -9/Materials | Discovered new exit (range 16) 2597 | -9/Materials | Entered Mines 2681 | -9/Mines | Discovered new exit (range 5) 2877 | -9/Mines | A weapon hastily lodged in a ceiling crevice suddenly fell to the ground 3208 | -9/Mines | Deemed a non-threat by the Exiles lab entrance 3209 | -9/Mines | Discovered new exit (range 5) 3216 | -9/Mines | Entered Exiles 3216 | -9/Exiles | Found Exiles lab destroyed 3375 | -9/Exiles | Opened EX-Vault 3386 | -9/Exiles | Found YOLO Cannon 3995 | -9/Exiles | Learned location of Zion (-6) 4113 | -9/Exiles | Discovered new exit (range 14) 4145 | -9/Exiles | Entered Mines 4145 | -8/Mines | Accompanied by 4 allies 4349 | -8/Mines | Lost 3 allies 4480 | -8/Mines | Core integrity fell below 20% 4600 | -8/Mines | Lost 3 parts (2n1w) 4620 | -8/Mines | Destroyed by G-47 Trooper with Particle Gun Last Messages --------------- 04495_ U-05 Engineer lays Concrete. 04496_ Acquired 66 matter. 04496_ U-05 Engineer builds a Wall. 04497_ Slug penetrates K-01 Serf. 04497_ K-01 Serf destroyed. 04498_ Acquired 8 matter. 04507_ T-07 Excavator destroyed. 04510_ Acquired 8 matter. 04531_ Slug penetrates Wall. 04545_ Slug penetrates L-31 Rogue. 04548_ Slug penetrates Wall. 04551_ Slug penetrates L-31 Rogue. 04556_ Mak. Leg destroyed. 04560_ Slug penetrates L-31 Rogue. 04564_ Shotgun destroyed. 04569_ Imp. Aluminum Leg destroyed. 04570_ L-31 Rogue destroyed. 04575_ Acquired 35 matter. 04582_ K-01 Serf collects debris. 04619_ Slug penetrates Wall. Map ----- +----------------------------------------------------+ | | | ??????????????????????????????? | | ??????????????????????????????? | | ??????????????????????????????? | | ??????????????????????????????? | | ??????????????????????????????? | | ??????????????????????????????? | | ??????????????????????????????? | | ??????????????????????????????? | | ??????????????????????????????? | | ??????????????????????????????? | | ???????????????# ?????????? | | ??????????????# ???????? | | ?????????????## ??????? | | ????????????## ?????? | | ???????????## ??????? | | ???????????# ???????? | | ???????????? #???????? | | ????????????? #???????? | | ?????????????# #???????? | | ?????????????# #????????? | | ???????####### #?????????? | | ????#### ## ##????????? | | ????# ##???????? | | ????# g ##??????? | | ????# @## ######?? | | ????###### #?? | | ?????????## #### #?? | | ??????????## ##??# ## #?? | | ???????????####???# ##?????? | | ??????????????????## #??????? | | ???????????????????# ##?????? | | ???????????????????## ##????? | | ????????????????????# #????? | | ????????????????????# ###### | | ????????????????????# # | | ????????????????????## ##### # | | ?????????????????????####???# # | | ???????????????##########???# # | | ???????????????#= #???# | | ?????????????###= """ #???### | | ????????????## "% """ #?????# | | ????????????# "= "" ####### | | ????????????## % =% " | | ?????????????# " ###=% | | ?????????????# " % #?# | | ?????????????# " [ #?# | | ?????????????##"""%######?# | | ??????????######## #??????## = | | ???######?# #?####??###" | +----------------------------------------------------+ Best States ------------- Heat Dissipation 50 Energy Generation 18 Energy Capacity 280 Matter Stores 300 Matter Capacity 300 Sight Range 16 Terrain Scan Density 10 Armor Coverage 150 Evasion (%) 55 Targeting Accuracy 5 Recoil Reduction 3 Item Schematics ----------------- Seismic Detector | -10/Materials | Hacked Robot Schematics ------------------ None Fabricated ------------ Nothing Repaired ---------- Nothing Studied --------- None Alien Tech Used ----------------- None Achievements -------------- None Challenges ------------ None Game ------ Seed ComponentLightningArchive Manual? 0 Play Time 00:42:33 Cumulative 266.3 hours Start 2025.12.05 @ 23:13:16 End 2025.12.06 @ 01:08:57 Sessions 1 Manual Loads 0 Difficulty Rogue Special Mode None Game No. 116 Rogue 116 Adventurer 0 Explorer 0 Win Type - Total 4 Types 4/0/0/0/0/0/0/0/0/0 Lore% 53 Gallery% 56 Achievement% 41 Wizard Run 0 Options --------- Layout 0 ASCII 0 Keyboard 0 Movement Numpad Keybinds 0 Fullscreen 2 Font 24/Smallcaps Map View 113x50 Zoom Use 0% Tactical HUD 1 Map Filters NONE Filters NONE Steam 1 RUN: 4cdbeff2-34b5-4fe5-8337-7252f4b442b2